[Event "Early-Titled-Tuesday-Blitz-November-28-2023"]
[Site "Chess.com"]
[Date "2023.11.28"]
[Round "8"]
[White "sumopork"]
[Black "Alexei_Gubajdullin"]
[Result "1-0"]
[WhiteElo "2826"]
[BlackElo "2672"]
[TimeControl "180+1"]
[EndTime "9:34:05 PST"]
[Termination "sumopork won by resignation"]

1. Nf3 {[%clk 0:03:00.9]} 1... Nf6 {[%clk 0:02:59.2]} 2. c4 {[%clk 0:03:00.3]}
2... g6 {[%clk 0:02:57]} 3. Nc3 {[%clk 0:03:00]} 3... Bg7 {[%clk 0:02:57.2]} 4.
e4 {[%clk 0:03:00.2]} 4... d6 {[%clk 0:02:57.2]} 5. d4 {[%clk 0:03:00.3]} 5...
O-O {[%clk 0:02:57.4]} 6. Be2 {[%clk 0:03:00.4]} 6... Na6 {[%clk 0:02:57.5]} 7.
O-O {[%clk 0:03:00]} 7... e5 {[%clk 0:02:57.8]} 8. Be3 {[%clk 0:03:00.2]} 8...
c6 {[%clk 0:02:57.3]} 9. d5 {[%clk 0:02:55.8]} 9... Ng4 {[%clk 0:02:57.3]} 10.
Bg5 {[%clk 0:02:55.7]} 10... f6 {[%clk 0:02:57.7]} 11. Bh4 {[%clk 0:02:55.4]}
11... c5 {[%clk 0:02:58.1]} 12. Ne1 {[%clk 0:02:55.2]} 12... h5 {[%clk
0:02:57.4]} 13. Nd3 {[%clk 0:02:51.6]} 13... Nh6 {[%clk 0:02:56.6]} 14. f3
{[%clk 0:02:51]} 14... Nf7 {[%clk 0:02:55]} 15. a3 {[%clk 0:02:43.2]} 15... Bh6
{[%clk 0:02:53.5]} 16. Bf2 {[%clk 0:02:43.1]} 16... Bg5 {[%clk 0:02:45.1]} 17.
b4 {[%clk 0:02:40.9]} 17... b6 {[%clk 0:02:43.3]} 18. Qb1 {[%clk 0:02:29.6]}
18... h4 {[%clk 0:02:42.6]} 19. a4 {[%clk 0:02:29.1]} 19... cxb4 {[%clk
0:02:37.2]} 20. Nxb4 {[%clk 0:02:26.4]} 20... Nc5 {[%clk 0:02:37]} 21. Nc6
{[%clk 0:02:23.2]} 21... Qe8 {[%clk 0:02:36.7]} 22. a5 {[%clk 0:02:23]} 22...
bxa5 {[%clk 0:02:33.3]} 23. Rxa5 {[%clk 0:02:19.4]} 23... Bd7 {[%clk 0:02:25.5]}
24. Nxa7 {[%clk 0:02:04.2]} 24... Qb8 {[%clk 0:02:05]} 25. Ra2 {[%clk
0:01:39.3]} 25... f5 {[%clk 0:01:49.2]} 26. Nab5 {[%clk 0:01:16.9]} 26... Rxa2
{[%clk 0:01:44.7]} 27. Qxa2 {[%clk 0:01:17.8]} 27... h3 {[%clk 0:01:44.5]} 28.
g3 {[%clk 0:01:16.5]} 28... Nh6 {[%clk 0:01:29.6]} 29. Qa7 {[%clk 0:01:08.7]}
29... Bxb5 {[%clk 0:00:58.2]} 30. Qxb8 {[%clk 0:01:02.7]} 30... Rxb8 {[%clk
0:00:57.4]} 31. Nxb5 {[%clk 0:00:50.1]} 31... fxe4 {[%clk 0:00:56.8]} 32. Nxd6
{[%clk 0:00:47.2]} 32... Nd3 {[%clk 0:00:56.2]} 33. Nxe4 {[%clk 0:00:43.4]}
33... Nxf2 {[%clk 0:00:55.2]} 34. Nxg5 {[%clk 0:00:43.9]} 34... e4 {[%clk
0:00:44.2]} 35. Kxf2 {[%clk 0:00:43]} 35... Rb2 {[%clk 0:00:40.3]} 36. Nxe4
{[%clk 0:00:42.4]} 36... Nf5 {[%clk 0:00:39.4]} 37. Rd1 {[%clk 0:00:43]} 1-0

[Event "Early-Titled-Tuesday-Blitz-November-28-2023"]
[Site "Chess.com"]
[Date "2023.11.28"]
[Round "8"]
[White "YouShallNotPass001"]
[Black "Chess4always"]
[Result "1-0"]
[WhiteElo "2452"]
[BlackElo "2067"]
[TimeControl "180+1"]
[EndTime "9:34:05 PST"]
[Termination "YouShallNotPass001 won by checkmate"]

1. Nf3 {[%clk 0:02:33.7]} 1... c6 {[%clk 0:02:59.5]} 2. g3 {[%clk 0:02:34.6]}
2... d5 {[%clk 0:02:59.3]} 3. Bg2 {[%clk 0:02:35.5]} 3... Nf6 {[%clk 0:02:59.4]}
4. O-O {[%clk 0:02:36.4]} 4... Bg4 {[%clk 0:02:58.5]} 5. c4 {[%clk 0:02:36.2]}
5... dxc4 {[%clk 0:02:58.3]} 6. Ne5 {[%clk 0:02:35.6]} 6... e6 {[%clk
0:02:57.9]} 7. Nxg4 {[%clk 0:02:35.2]} 7... Nxg4 {[%clk 0:02:58.8]} 8. a4 {[%clk
0:02:33.8]} 8... Nd7 {[%clk 0:02:58.6]} 9. Qc2 {[%clk 0:02:34.3]} 9... Nge5
{[%clk 0:02:54.3]} 10. f4 {[%clk 0:02:32.6]} 10... Bc5+ {[%clk 0:02:53.6]} 11.
Kh1 {[%clk 0:02:32.8]} 11... Ng4 {[%clk 0:02:53.2]} 12. e3 {[%clk 0:02:33.1]}
12... h5 {[%clk 0:02:46.2]} 13. h3 {[%clk 0:02:28.2]} 13... h4 {[%clk
0:02:32.3]} 14. hxg4 {[%clk 0:02:19.2]} 14... hxg3+ {[%clk 0:02:32.1]} 15. Kg1
{[%clk 0:02:19.6]} 15... Qh4 {[%clk 0:02:32.4]} 16. Rf3 {[%clk 0:02:18.8]} 16...
e5 {[%clk 0:02:17.3]} 17. Qxc4 {[%clk 0:02:14]} 17... O-O-O {[%clk 0:02:09.7]}
18. b4 {[%clk 0:02:07.1]} 18... exf4 {[%clk 0:02:00.4]} 19. bxc5 {[%clk
0:02:00.9]} 19... Ne5 {[%clk 0:01:52.2]} 20. Qxf4 {[%clk 0:01:59.9]} 20... Nxf3+
{[%clk 0:01:52.2]} 21. Qxf3 {[%clk 0:02:00.8]} 21... f5 {[%clk 0:01:31.4]} 22.
gxf5 {[%clk 0:01:51.1]} 22... Rd5 {[%clk 0:01:16]} 23. Nc3 {[%clk 0:01:47.4]}
23... Rxc5 {[%clk 0:01:12.7]} 24. Ne4 {[%clk 0:01:47.8]} 24... Re5 {[%clk
0:00:25.4]} 25. Bb2 {[%clk 0:01:26.5]} 25... Rxe4 {[%clk 0:00:24.5]} 26. Qxe4
{[%clk 0:01:25.9]} 26... Qh2+ {[%clk 0:00:22.7]} 27. Kf1 {[%clk 0:01:25.8]}
27... Rd8 {[%clk 0:00:22.8]} 28. Qe6+ {[%clk 0:01:18.7]} 28... Kb8 {[%clk
0:00:21.8]} 29. Be5+ {[%clk 0:01:15.7]} 29... Ka8 {[%clk 0:00:21.5]} 30. Rb1
{[%clk 0:01:09.4]} 30... Qh4 {[%clk 0:00:11.1]} 31. Rxb7 {[%clk 0:00:57]} 31...
Kxb7 {[%clk 0:00:06.7]} 32. Qxc6# {[%clk 0:00:55.7]} 1-0

[Event "Early-Titled-Tuesday-Blitz-November-28-2023"]
[Site "Chess.com"]
[Date "2023.11.28"]
[Round "8"]
[White "Firouzja2003"]
[Black "Hovik_Hayrapetyan"]
[Result "0-1"]
[WhiteElo "3038"]
[BlackElo "2819"]
[TimeControl "180+1"]
[EndTime "9:34:06 PST"]
[Termination "Hovik_Hayrapetyan won by checkmate"]

1. b4 {[%clk 0:02:58.1]} 1... e5 {[%clk 0:02:56.2]} 2. Bb2 {[%clk 0:02:57.4]}
2... Bxb4 {[%clk 0:02:55.4]} 3. Bxe5 {[%clk 0:02:57.7]} 3... Nf6 {[%clk
0:02:56]} 4. c4 {[%clk 0:02:57.4]} 4... O-O {[%clk 0:02:54.1]} 5. e3 {[%clk
0:02:57.1]} 5... Re8 {[%clk 0:02:53.1]} 6. Nf3 {[%clk 0:02:56.1]} 6... Nc6
{[%clk 0:02:52.8]} 7. Bb2 {[%clk 0:02:56]} 7... d5 {[%clk 0:02:52.8]} 8. cxd5
{[%clk 0:02:56.3]} 8... Nxd5 {[%clk 0:02:26.9]} 9. Be2 {[%clk 0:02:56.2]} 9...
Rxe3 {[%clk 0:01:51.7]} 10. fxe3 {[%clk 0:02:57.1]} 10... Nxe3 {[%clk
0:01:52.2]} 11. Qb3 {[%clk 0:02:55.9]} 11... Nxg2+ {[%clk 0:01:52.2]} 12. Kf2
{[%clk 0:02:55.7]} 12... Be6 {[%clk 0:01:52.6]} 13. Bc4 {[%clk 0:02:27.9]} 13...
Nf4 {[%clk 0:01:43.7]} 14. Bxe6 {[%clk 0:02:15.4]} 14... fxe6 {[%clk 0:01:44.1]}
15. d4 {[%clk 0:02:01.8]} 15... Qf6 {[%clk 0:01:38.6]} 16. Na3 {[%clk
0:01:50.2]} 16... Qf5 {[%clk 0:01:32.1]} 17. Rhg1 {[%clk 0:01:01]} 17... Nd3+
{[%clk 0:01:02.9]} 18. Ke3 {[%clk 0:00:31.1]} 18... Qf4+ {[%clk 0:01:03]} 19.
Kxd3 {[%clk 0:00:31.3]} 19... Qxf3+ {[%clk 0:01:03.3]} 20. Kc2 {[%clk
0:00:20.5]} 20... Qf2+ {[%clk 0:00:57.1]} 21. Kd3 {[%clk 0:00:18.1]} 21... Ne5+
{[%clk 0:00:39.2]} 22. dxe5 {[%clk 0:00:05.6]} 22... Rd8+ {[%clk 0:00:39.1]} 23.
Ke4 {[%clk 0:00:03.8]} 23... Qf5+ {[%clk 0:00:39]} 24. Ke3 {[%clk 0:00:03.9]}
24... Bc5+ {[%clk 0:00:34]} 25. Ke2 {[%clk 0:00:04.4]} 25... Qf2# {[%clk
0:00:33.5]} 0-1

[Event "Early-Titled-Tuesday-Blitz-November-28-2023"]
[Site "Chess.com"]
[Date "2023.11.28"]
[Round "8"]
[White "mbojan"]
[Black "Ajedrez_con_German"]
[Result "1-0"]
[WhiteElo "2853"]
[BlackElo "2627"]
[TimeControl "180+1"]
[EndTime "9:34:07 PST"]
[Termination "mbojan won on time"]

1. e4 {[%clk 0:03:00.9]} 1... e6 {[%clk 0:02:50.4]} 2. d4 {[%clk 0:03:00]} 2...
d5 {[%clk 0:02:50.2]} 3. Nc3 {[%clk 0:03:00.6]} 3... a6 {[%clk 0:02:49.1]} 4.
Bd3 {[%clk 0:02:55.4]} 4... dxe4 {[%clk 0:02:40.1]} 5. Nxe4 {[%clk 0:02:53.8]}
5... Nd7 {[%clk 0:02:35.3]} 6. Nf3 {[%clk 0:02:52.5]} 6... Ngf6 {[%clk 0:02:35]}
7. Bg5 {[%clk 0:02:48]} 7... h6 {[%clk 0:02:31.5]} 8. Nxf6+ {[%clk 0:02:48]}
8... Nxf6 {[%clk 0:02:31.2]} 9. Bh4 {[%clk 0:02:48.6]} 9... c5 {[%clk
0:02:30.9]} 10. c3 {[%clk 0:02:40.9]} 10... cxd4 {[%clk 0:02:30.7]} 11. Nxd4
{[%clk 0:02:41.8]} 11... Be7 {[%clk 0:02:26.4]} 12. O-O {[%clk 0:02:42.2]} 12...
Nd5 {[%clk 0:02:09.2]} 13. Bg3 {[%clk 0:02:42.1]} 13... O-O {[%clk 0:02:05.1]}
14. Qe2 {[%clk 0:02:40.2]} 14... Bd7 {[%clk 0:02:02.4]} 15. Rae1 {[%clk
0:02:39.2]} 15... Re8 {[%clk 0:01:59.8]} 16. Qe4 {[%clk 0:02:34.2]} 16... g6
{[%clk 0:01:37.5]} 17. Qg4 {[%clk 0:01:34.2]} 17... Bf6 {[%clk 0:01:22.2]} 18.
Qe2 {[%clk 0:01:17.3]} 18... Qb6 {[%clk 0:01:10.6]} 19. Bb1 {[%clk 0:00:59.3]}
19... Ne7 {[%clk 0:00:55]} 20. Rd1 {[%clk 0:00:55.4]} 20... Rad8 {[%clk
0:00:50]} 21. Qe3 {[%clk 0:00:52.7]} 21... Bg7 {[%clk 0:00:42.2]} 22. Rfe1
{[%clk 0:00:50.8]} 22... Qxb2 {[%clk 0:00:25.1]} 23. Be5 {[%clk 0:00:45.3]}
23... Bxe5 {[%clk 0:00:23.9]} 24. Qxe5 {[%clk 0:00:45.5]} 24... Nc6 {[%clk
0:00:24.3]} 25. Nxc6 {[%clk 0:00:43]} 25... Bxc6 {[%clk 0:00:24.7]} 26. Rxd8
{[%clk 0:00:43.4]} 26... Rxd8 {[%clk 0:00:21.6]} 27. Bxg6 {[%clk 0:00:44]} 27...
fxg6 {[%clk 0:00:20.3]} 28. Qxe6+ {[%clk 0:00:44.5]} 1-0

[Event "Early-Titled-Tuesday-Blitz-November-28-2023"]
[Site "Chess.com"]
[Date "2023.11.28"]
[Round "8"]
[White "Bauman_Guy"]
[Black "olksuna"]
[Result "1-0"]
[WhiteElo "2891"]
[BlackElo "2733"]
[TimeControl "180+1"]
[EndTime "9:34:14 PST"]
[Termination "Bauman_Guy won on time"]

1. e4 {[%clk 0:03:00.9]} 1... e5 {[%clk 0:02:59.8]} 2. Nf3 {[%clk 0:03:00.3]}
2... Nc6 {[%clk 0:03:00]} 3. Bb5 {[%clk 0:02:59.4]} 3... a6 {[%clk 0:03:00]} 4.
Ba4 {[%clk 0:02:59.4]} 4... Nf6 {[%clk 0:03:00.4]} 5. O-O {[%clk 0:02:59.4]}
5... Be7 {[%clk 0:03:00.9]} 6. Re1 {[%clk 0:02:59.5]} 6... b5 {[%clk 0:03:01.2]}
7. Bb3 {[%clk 0:02:59.3]} 7... O-O {[%clk 0:03:01.9]} 8. h3 {[%clk 0:02:57.5]}
8... Bb7 {[%clk 0:02:58.7]} 9. c3 {[%clk 0:02:50.4]} 9... d5 {[%clk 0:02:57.8]}
10. exd5 {[%clk 0:02:48]} 10... Nxd5 {[%clk 0:02:57.7]} 11. Nxe5 {[%clk
0:02:45]} 11... Nxe5 {[%clk 0:02:52.5]} 12. Rxe5 {[%clk 0:02:45.9]} 12... Bf6
{[%clk 0:02:39.1]} 13. Rf5 {[%clk 0:02:37.3]} 13... Re8 {[%clk 0:02:24.5]} 14.
d4 {[%clk 0:02:33.9]} 14... Qd7 {[%clk 0:02:09.5]} 15. Rf3 {[%clk 0:02:29.8]}
15... Re7 {[%clk 0:02:02.2]} 16. Na3 {[%clk 0:02:24.8]} 16... Rae8 {[%clk
0:01:55.4]} 17. Bd2 {[%clk 0:02:24.9]} 17... Bh4 {[%clk 0:01:45.4]} 18. Nc2
{[%clk 0:02:20.9]} 18... Nf6 {[%clk 0:01:44.4]} 19. Re3 {[%clk 0:02:10.7]} 19...
Ne4 {[%clk 0:01:42.8]} 20. Be1 {[%clk 0:02:06.8]} 20... Qf5 {[%clk 0:01:27.4]}
21. Qf3 {[%clk 0:02:01.4]} 21... Qg6 {[%clk 0:01:15.2]} 22. Qg4 {[%clk
0:01:59.1]} 22... Bg5 {[%clk 0:01:03.4]} 23. f4 {[%clk 0:01:43.3]} 23... h5
{[%clk 0:00:55.5]} 24. Qf3 {[%clk 0:01:41.8]} 24... Bh6 {[%clk 0:00:27.9]} 25.
d5 {[%clk 0:01:37.5]} 25... Qf5 {[%clk 0:00:24.2]} 26. Nd4 {[%clk 0:01:32.4]}
26... Qxf4 {[%clk 0:00:23.7]} 27. Qxf4 {[%clk 0:01:32.6]} 27... Bxf4 {[%clk
0:00:24.6]} 28. Rf3 {[%clk 0:01:33.5]} 28... Bd6 {[%clk 0:00:21.5]} 29. Nf5
{[%clk 0:01:33.3]} 29... Bc5+ {[%clk 0:00:20.8]} 30. Kh1 {[%clk 0:01:32.8]}
30... Rd7 {[%clk 0:00:18]} 31. Rd1 {[%clk 0:01:32.2]} 31... Nf6 {[%clk
0:00:16.2]} 32. Rfd3 {[%clk 0:01:27.1]} 32... Bxd5 {[%clk 0:00:12.6]} 33. Bh4
{[%clk 0:01:21.3]} 33... Bxb3 {[%clk 0:00:10.3]} 34. axb3 {[%clk 0:01:22.2]}
34... Rxd3 {[%clk 0:00:09.6]} 35. Rxd3 {[%clk 0:01:23.1]} 35... Ne4 {[%clk
0:00:06.7]} 36. Rd7 {[%clk 0:01:23.1]} 36... Nf2+ {[%clk 0:00:06.3]} 37. Kh2
{[%clk 0:01:21.9]} 37... Re1 {[%clk 0:00:06.3]} 38. Rxc7 {[%clk 0:01:16.3]}
38... Rh1+ {[%clk 0:00:04.5]} 39. Kg3 {[%clk 0:01:16.3]} 39... Ne4+ {[%clk
0:00:04.1]} 40. Kf3 {[%clk 0:01:16.4]} 40... Bd6 {[%clk 0:00:01.4]} 41. Rc8+
{[%clk 0:01:16]} 41... Kh7 {[%clk 0:00:02]} 42. Kxe4 {[%clk 0:01:16.4]} 1-0

[Event "Early-Titled-Tuesday-Blitz-November-28-2023"]
[Site "Chess.com"]
[Date "2023.11.28"]
[Round "8"]
[White "JaloliddinIlkhomi"]
[Black "K_A_S_T_O_R"]
[Result "0-1"]
[WhiteElo "2709"]
[BlackElo "2858"]
[TimeControl "180+1"]
[EndTime "9:34:15 PST"]
[Termination "K_A_S_T_O_R won by resignation"]

1. Nf3 {[%clk 0:03:00.9]} 1... c5 {[%clk 0:02:43.1]} 2. c3 {[%clk 0:03:00.8]}
2... d5 {[%clk 0:02:37.2]} 3. d4 {[%clk 0:03:01]} 3... e6 {[%clk 0:02:37.3]} 4.
Bf4 {[%clk 0:03:01.5]} 4... Bd6 {[%clk 0:02:36.6]} 5. Bg3 {[%clk 0:03:01]} 5...
Nf6 {[%clk 0:02:36.2]} 6. e3 {[%clk 0:03:01.5]} 6... Qc7 {[%clk 0:02:34.4]} 7.
Nbd2 {[%clk 0:02:58.4]} 7... Nbd7 {[%clk 0:02:34]} 8. Bd3 {[%clk 0:02:59]} 8...
O-O {[%clk 0:02:33.2]} 9. O-O {[%clk 0:02:59.5]} 9... e5 {[%clk 0:02:33.5]} 10.
dxe5 {[%clk 0:03:00.1]} 10... Nxe5 {[%clk 0:02:34.1]} 11. Nxe5 {[%clk
0:03:00.6]} 11... Bxe5 {[%clk 0:02:34.7]} 12. Qe2 {[%clk 0:03:01.2]} 12... Bg4
{[%clk 0:02:32.7]} 13. f3 {[%clk 0:03:01.4]} 13... Bd7 {[%clk 0:02:30.9]} 14.
Qf2 {[%clk 0:03:01.5]} 14... Rfe8 {[%clk 0:02:30.2]} 15. Rfe1 {[%clk 0:03:01.6]}
15... Rad8 {[%clk 0:02:29.4]} 16. Rad1 {[%clk 0:03:01.9]} 16... Bc6 {[%clk
0:02:29.4]} 17. Bb1 {[%clk 0:02:52.2]} 17... b6 {[%clk 0:02:28.6]} 18. Bxe5
{[%clk 0:02:33.4]} 18... Qxe5 {[%clk 0:02:27.3]} 19. e4 {[%clk 0:02:26.8]} 19...
dxe4 {[%clk 0:02:22.5]} 20. Nxe4 {[%clk 0:02:24.4]} 20... Bxe4 {[%clk
0:02:12.6]} 21. Rxd8 {[%clk 0:02:15.5]} 21... Rxd8 {[%clk 0:02:10.3]} 22. Qe3
{[%clk 0:01:44.9]} 22... Qd6 {[%clk 0:01:55.2]} 23. Bxe4 {[%clk 0:01:42.9]}
23... Qd2 {[%clk 0:01:52]} 24. Qe2 {[%clk 0:01:27.4]} 24... g6 {[%clk
0:01:43.7]} 25. Bb1 {[%clk 0:01:22.4]} 25... Qxe2 {[%clk 0:01:42.2]} 26. Rxe2
{[%clk 0:00:57.8]} 26... Rd1+ {[%clk 0:01:36.7]} 27. Kf2 {[%clk 0:00:02.6]}
27... Rxb1 {[%clk 0:01:35.4]} 28. Rd2 {[%clk 0:00:03.3]} 28... Kf8 {[%clk
0:01:34.4]} 29. Ke3 {[%clk 0:00:03.7]} 29... Ke7 {[%clk 0:01:34.5]} 30. Ke2
{[%clk 0:00:02.4]} 30... Ke6 {[%clk 0:01:31.2]} 31. a3 {[%clk 0:00:02.7]} 31...
Nd7 {[%clk 0:01:29.6]} 32. Kd3 {[%clk 0:00:02.8]} 32... Rc1 {[%clk 0:01:28]} 33.
Re2+ {[%clk 0:00:02.6]} 33... Ne5+ {[%clk 0:01:27.3]} 34. Kd2 {[%clk 0:00:01.5]}
34... Rb1 {[%clk 0:01:24.1]} 35. Kc2 {[%clk 0:00:01.3]} 35... Rf1 {[%clk
0:01:23.9]} 36. Kd2 {[%clk 0:00:01.1]} 36... g5 {[%clk 0:01:22.5]} 37. Kc2
{[%clk 0:00:01.4]} 37... f5 {[%clk 0:01:21.6]} 38. Kd2 {[%clk 0:00:01.9]} 38...
f4 {[%clk 0:01:21.6]} 39. Kc2 {[%clk 0:00:02.1]} 39... h5 {[%clk 0:01:20.1]} 40.
h3 {[%clk 0:00:01.6]} 40... Kf5 {[%clk 0:01:19.2]} 41. Kd2 {[%clk 0:00:01.8]}
41... Nc4+ {[%clk 0:01:18.8]} 42. Kc2 {[%clk 0:00:02]} 42... Ne3+ {[%clk
0:01:18.8]} 43. Kd3 {[%clk 0:00:02.1]} 43... Rd1+ {[%clk 0:01:18.5]} 0-1

[Event "Early-Titled-Tuesday-Blitz-November-28-2023"]
[Site "Chess.com"]
[Date "2023.11.28"]
[Round "8"]
[White "xamax2000"]
[Black "Grischuk"]
[Result "0-1"]
[WhiteElo "2926"]
[BlackElo "3062"]
[TimeControl "180+1"]
[EndTime "9:34:23 PST"]
[Termination "Grischuk won by resignation"]

1. Nf3 {[%clk 0:02:59]} 1... d5 {[%clk 0:02:59]} 2. c4 {[%clk 0:02:59.4]} 2...
c6 {[%clk 0:02:58.4]} 3. g3 {[%clk 0:02:59.8]} 3... Nf6 {[%clk 0:02:57.5]} 4.
Bg2 {[%clk 0:03:00.1]} 4... dxc4 {[%clk 0:02:57.5]} 5. Qc2 {[%clk 0:02:59.8]}
5... b5 {[%clk 0:02:52.1]} 6. a4 {[%clk 0:03:00.2]} 6... Bb7 {[%clk 0:02:49.1]}
7. b3 {[%clk 0:03:00.3]} 7... cxb3 {[%clk 0:02:46.6]} 8. Qxb3 {[%clk 0:03:01.2]}
8... a6 {[%clk 0:02:44]} 9. Ba3 {[%clk 0:03:01.7]} 9... Nbd7 {[%clk 0:02:37.3]}
10. O-O {[%clk 0:02:38.5]} 10... e6 {[%clk 0:02:32.5]} 11. Bxf8 {[%clk
0:02:37.7]} 11... Nxf8 {[%clk 0:02:33.4]} 12. d4 {[%clk 0:02:13.6]} 12... N8d7
{[%clk 0:02:26.9]} 13. Nbd2 {[%clk 0:01:56.7]} 13... O-O {[%clk 0:02:24.8]} 14.
e4 {[%clk 0:01:56.8]} 14... Qb6 {[%clk 0:02:05.3]} 15. Rfc1 {[%clk 0:01:52]}
15... c5 {[%clk 0:02:00.7]} 16. dxc5 {[%clk 0:01:38.3]} 16... Nxc5 {[%clk
0:01:59.2]} 17. Qe3 {[%clk 0:01:38.8]} 17... Nxa4 {[%clk 0:01:49.6]} 18. Qxb6
{[%clk 0:01:35.6]} 18... Nxb6 {[%clk 0:01:49.5]} 19. Rc7 {[%clk 0:01:36.5]}
19... Rab8 {[%clk 0:01:24.5]} 20. Nd4 {[%clk 0:01:35.6]} 20... Rfc8 {[%clk
0:01:14.6]} 21. Rxc8+ {[%clk 0:01:34.5]} 21... Rxc8 {[%clk 0:01:13.6]} 22. e5
{[%clk 0:01:33.6]} 22... Nfd5 {[%clk 0:01:07.1]} 23. Ne4 {[%clk 0:01:33.7]}
23... Nc4 {[%clk 0:00:38.3]} 24. Nd6 {[%clk 0:01:33.4]} 24... Nxd6 {[%clk
0:00:38.5]} 25. exd6 {[%clk 0:01:34.3]} 25... Rd8 {[%clk 0:00:37.1]} 26. Bxd5
{[%clk 0:01:34.2]} 26... exd5 {[%clk 0:00:29.8]} 27. Rc1 {[%clk 0:01:27.8]}
27... Rxd6 {[%clk 0:00:28.5]} 28. Rc7 {[%clk 0:01:28.3]} 28... Rb6 {[%clk
0:00:28.8]} 29. Nb3 {[%clk 0:01:28.9]} 29... b4 {[%clk 0:00:20.7]} 30. Kf1
{[%clk 0:01:09.4]} 30... h6 {[%clk 0:00:18.1]} 31. Ke2 {[%clk 0:01:09.8]} 31...
d4 {[%clk 0:00:16.6]} 32. Rd7 {[%clk 0:01:03]} 32... Bc6 {[%clk 0:00:13.8]} 33.
Rxd4 {[%clk 0:01:03.2]} 33... Ba4 {[%clk 0:00:13.9]} 34. Nc5 {[%clk 0:01:03.7]}
34... Bb5+ {[%clk 0:00:14]} 35. Kd2 {[%clk 0:01:04.3]} 35... a5 {[%clk
0:00:13.3]} 36. Rd8+ {[%clk 0:00:59.7]} 36... Kh7 {[%clk 0:00:13.1]} 37. Ra8
{[%clk 0:01:00.3]} 37... Rd6+ {[%clk 0:00:11.8]} 38. Ke3 {[%clk 0:00:57.5]}
38... Rd5 {[%clk 0:00:12.2]} 0-1

[Event "Early-Titled-Tuesday-Blitz-November-28-2023"]
[Site "Chess.com"]
[Date "2023.11.28"]
[Round "8"]
[White "ljuks68"]
[Black "grandemestregringo"]
[Result "1/2-1/2"]
[WhiteElo "2452"]
[BlackElo "2609"]
[TimeControl "180+1"]
[EndTime "9:34:25 PST"]
[Termination "Game drawn by agreement"]

1. e4 {[%clk 0:03:00.9]} 1... e5 {[%clk 0:02:59.4]} 2. Nf3 {[%clk 0:03:00.6]}
2... Nc6 {[%clk 0:02:59.7]} 3. Bb5 {[%clk 0:03:00.3]} 3... f5 {[%clk 0:02:58.8]}
4. d3 {[%clk 0:03:00.2]} 4... fxe4 {[%clk 0:02:57.9]} 5. dxe4 {[%clk 0:03:00.6]}
5... Nf6 {[%clk 0:02:58.5]} 6. O-O {[%clk 0:03:00.4]} 6... Bc5 {[%clk
0:02:56.2]} 7. Bxc6 {[%clk 0:02:57.1]} 7... bxc6 {[%clk 0:02:55.8]} 8. Nxe5
{[%clk 0:02:57.2]} 8... O-O {[%clk 0:02:54.9]} 9. Nc3 {[%clk 0:02:56.6]} 9... d6
{[%clk 0:02:55]} 10. Na4 {[%clk 0:02:56.9]} 10... Bb6 {[%clk 0:02:50]} 11. Nxc6
{[%clk 0:02:49.4]} 11... Qe8 {[%clk 0:02:49.9]} 12. Nxb6 {[%clk 0:02:49.3]}
12... axb6 {[%clk 0:02:48.7]} 13. Nd4 {[%clk 0:02:46.1]} 13... Qxe4 {[%clk
0:02:46.3]} 14. Qf3 {[%clk 0:02:31.5]} 14... Ba6 {[%clk 0:02:43.1]} 15. Qxe4
{[%clk 0:02:13.5]} 15... Nxe4 {[%clk 0:02:42.9]} 16. Re1 {[%clk 0:02:13.5]}
16... Nxf2 {[%clk 0:02:40.8]} 17. Ne6 {[%clk 0:02:09.6]} 17... Rf7 {[%clk
0:02:40.8]} 18. h3 {[%clk 0:01:49.9]} 18... Re8 {[%clk 0:02:26.3]} 19. Bd2
{[%clk 0:01:33]} 19... h6 {[%clk 0:01:53.2]} 20. Bc3 {[%clk 0:01:25]} 20... Bb7
{[%clk 0:01:27.9]} 21. Nxc7 {[%clk 0:00:52.6]} 21... Rxe1+ {[%clk 0:01:21.5]}
22. Rxe1 {[%clk 0:00:52]} 22... Ne4 {[%clk 0:01:03.1]} 23. Nb5 {[%clk
0:00:49.4]} 23... Rf5 {[%clk 0:00:53.7]} 24. Rxe4 {[%clk 0:00:31.8]} 24... Bxe4
{[%clk 0:00:53.4]} 25. Nxd6 {[%clk 0:00:32.3]} 25... Bxc2 {[%clk 0:00:49]} 26.
Nxf5 {[%clk 0:00:31.2]} 26... Bxf5 {[%clk 0:00:49.6]} 27. a4 {[%clk 0:00:28.2]}
27... Bc2 {[%clk 0:00:49.2]} 28. Bd4 {[%clk 0:00:27.8]} 28... Bxa4 {[%clk
0:00:47.7]} 29. Bxb6 {[%clk 0:00:28.1]} 29... Bb3 {[%clk 0:00:47]} 30. Kf2
{[%clk 0:00:28.3]} 30... Kf7 {[%clk 0:00:46.7]} 31. Ke3 {[%clk 0:00:28.4]} 31...
Ke6 {[%clk 0:00:44.6]} 32. Kd4 {[%clk 0:00:26.4]} 32... Kd7 {[%clk 0:00:42.5]}
33. Kc3 {[%clk 0:00:22.4]} 33... Bd5 {[%clk 0:00:42.2]} 34. g3 {[%clk 0:00:22]}
34... Bg2 {[%clk 0:00:41.8]} 35. h4 {[%clk 0:00:21.6]} 35... h5 {[%clk
0:00:42.5]} 36. Kc4 {[%clk 0:00:19]} 36... g6 {[%clk 0:00:43.4]} 37. Kc5 {[%clk
0:00:19]} 37... Kc8 {[%clk 0:00:44.3]} 38. b4 {[%clk 0:00:18.9]} 38... Kb7
{[%clk 0:00:45.2]} 39. Bd8 {[%clk 0:00:18.4]} 39... Bh3 {[%clk 0:00:46.1]} 40.
b5 {[%clk 0:00:17.8]} 40... Bf5 {[%clk 0:00:46.4]} 41. Be7 {[%clk 0:00:14]}
41... Bg4 {[%clk 0:00:47.3]} 42. Bf6 {[%clk 0:00:14.3]} 42... Bf5 {[%clk
0:00:46]} 1/2-1/2